bitfinex/quotes_ETHUSD_20250215
["timestamp","ask_amount","ask_price","bid_price","bid_amount"]
[1739622953055,0.261,2709.1,2708.7,0.7886]
[1739622953256,3.95227,2709.1,2708.7,0.7886]
[1739622953894,3.69147,2709.0,2708.7,0.7886]
[1739622956193,0.0992,2708.9,2708.7,0.7886]
[1739622959764,0.0992,2708.9,2708.4,9.07209]
[1739622959986,3.7908,2708.9,2708.5,0.8195]
[1739622960196,7.48244,2708.9,2708.5,0.8195]
[1739622960404,3.7908,2708.9,2708.5,0.8195]
[1739622961299,0.0992,2708.9,2708.5,4.51157]
[1739622961474,0.0992,2708.9,2708.6,1.45874616]
[1739622961679,0.0992,2708.9,2708.5,13.39823246]
[1739622961680,0.0992,2708.9,2708.5,9.70616246]
[1739622961882,4.60163,2708.9,2708.5,9.70616246]
[1739622963696,4.60163,2708.9,2708.5,6.1995]
[1739622963863,4.60163,2708.9,2708.5,5.38]
[1739622963864,3.69194,2708.6,2708.5,5.38]
[1739622964614,4.50284,2708.6,2708.5,5.38]
[1739622964772,5.543816,2708.6,2708.5,5.38]
[1739622965501,3.69257,2708.2,2707.9,0.8195]
[1739622965802,8.19608,2708.2,2707.7,6.1995]
[1739622966002,4.50347,2708.2,2707.7,6.1995]
[1739622966202,3.69267,2708.1,2707.7,6.1995]
[1739622967670,3.0259,2708.2,2707.7,5.38]
[1739622967874,7.194947,2708.2,2707.7,5.38]
[1739622968204,3.69286,2708.0,2707.7,5.38]
[1739622969317,3.69286,2708.0,2707.5,5.38]
[1739622969617,3.6929,2707.9,2707.5,5.38]
[1739622969823,3.6929,2707.9,2707.5,6.15921885]
[1739622971021,3.69285,2708.0,2707.5,6.15921885]
[1739622971229,3.69299,2707.9,2707.5,6.15921885]
[1739622971527,3.69285,2708.0,2707.5,6.15921885]
[1739622971727,7.38573,2708.0,2707.5,6.15921885]
[1739622972105,3.69285,2708.0,2707.5,6.15921885]
[1739622972420,3.69285,2708.0,2707.6,0.8195]
[1739622973219,7.38569,2708.0,2707.6,0.8195]
[1739622973394,3.69284,2708.0,2707.6,0.8195]
[1739622974314,0.8161,2708.4,2707.6,6.62835807]
[1739622974486,3.69231,2708.4,2708.0,0.7737]
[1739622974825,3.69231,2708.4,2708.0,4.46645]
[1739622974826,0.261,2708.4,2708.0,4.46645]
[1739622975021,3.95301,2708.6,2708.0,5.26367125]
[1739622975191,3.95301,2708.6,2708.3,0.7737]
[1739622975590,7.64506,2708.6,2708.3,0.7737]
[1739622975822,0.261,2708.6,2708.3,0.7737]
[1739622976143,3.95272,2708.8,2708.3,0.7737]
[1739622976425,3.95272,2708.8,2708.3,7.32022325]
[1739622977626,7.64452,2708.8,2708.3,7.32022325]
[1739622977786,3.69183,2708.7,2708.3,7.32022325]
[1739622977993,3.95272,2708.8,2708.3,7.32022325]
[1739622978292,7.64448,2708.8,2708.3,7.32022325]
[1739622978599,3.95272,2708.8,2708.4,1.45193357]
[1739622978803,3.95272,2708.8,2708.3,7.32022325]
[1739622979001,3.69196,2708.6,2708.3,7.32022325]
[1739622979341,3.69221,2708.4,2708.1,5.38]
[1739622979708,3.69248,2708.2,2708.1,5.38]
[1739622979925,3.69248,2708.2,2707.8,6.1537]
[1739622980123,7.38535,2708.1,2707.8,6.1537]
[1739622980431,3.69264,2708.1,2707.8,5.38]
[1739622984226,3.69289,2707.9,2707.8,5.38]
[1739622985206,3.69289,2707.9,2707.5,5.38]
[1739622986436,6.17176,2708.0,2707.5,9.07342]
[1739622986636,2.479,2708.0,2707.6,3.50666246]
[1739622986842,2.479,2708.0,2707.6,7.19995246]
[1739622987946,0.261,2708.0,2707.7,0.8287]
[1739622988744,5.91056,2708.2,2707.7,4.5218]
[1739622988954,4.44389808,2708.4,2707.9,3.50666246]
[1739622989113,0.262,2708.4,2708.0,4.52141]
[1739622989307,5.90996,2708.6,2708.0,4.52141]
[1739622989308,6.17196,2708.6,2708.0,4.52141]
[1739622989546,6.17196,2708.6,2708.0,10.87934709]
[1739622990353,3.69218,2708.5,2708.0,10.87934709]
[1739622990522,6.17196,2708.6,2708.0,10.87934709]
[1739622990714,6.17196,2708.6,2708.0,10.87932709]
[1739622991651,6.17196,2708.6,2708.0,14.57200709]
[1739622992250,6.17196,2708.6,2708.0,10.87932709]
[1739622992414,2.48,2708.6,2708.1,3.69261]
[1739622992615,0.262,2708.6,2708.1,3.69261]
[1739622993010,0.262,2708.6,2708.2,3.69247]
[1739622993215,0.262,2708.6,2708.2,7.19913246]
[1739622994515,0.262,2708.6,2708.2,7.19906246]
[1739622994709,0.262,2708.7,2708.3,0.8287]
[1739622995648,3.69195,2708.6,2708.3,0.8287]
[1739622995850,7.38402,2708.6,2708.3,0.8287]
[1739622996016,3.69195,2708.6,2708.3,0.8287]
[1739622996948,3.0233,2708.6,2708.0,6.2087]
[1739622997264,3.69225,2708.4,2708.0,6.2087]
[1739623000749,3.69258,2708.2,2708.0,6.2087]
[1739623000943,3.69258,2708.2,2708.0,5.38]
[1739623001341,3.69258,2708.2,2707.7,0.8287]
[1739623001342,0.8053,2707.9,2707.0,5.38]
[1739623001645,3.69398,2707.1,2707.0,5.38]
[1739623001853,3.69393,2707.2,2707.0,5.38]
[1739623003261,3.69398,2707.1,2707.0,5.38]
[1739623004156,3.69468,2706.6,2706.2,0.8083]
[1739623004530,0.263,2706.7,2706.2,0.8083]
[1739623004732,3.69469,2706.6,2706.2,0.8083]
[1739623006328,0.263,2706.7,2706.2,2.09105569]
[1739623006547,0.263,2706.7,2706.2,5.78624569]
[1739623006947,0.264,2706.7,2706.4,3.69493]
[1739623007168,0.264,2706.7,2706.5,0.8083]
[1739623008879,3.95826,2706.9,2706.5,0.8083]
[1739623009039,3.95826,2706.9,2706.5,6.1883]
[1739623011171,0.264,2706.9,2706.5,6.1883]
[1739623012273,0.264,2706.9,2706.5,9.88309]
[1739623012677,0.264,2707.2,2706.7,4.50275]
[1739623012973,3.69404,2707.1,2706.7,6.1883]
[1739623013353,3.69315,2707.8,2707.1,0.8083]
[1739623013554,0.771,2707.9,2707.4,3.50666246]
[1739623013762,2.67222349,2708.2,2707.7,3.50666246]
[1739623013965,3.7908,2708.9,2708.1,3.69262]
[1739623014285,0.0992,2708.9,2708.6,3.50666246]
[1739623014440,0.0992,2708.9,2708.8,3.69167]
[1739623014644,0.0992,2708.9,2708.8,4.49997]
[1739623014948,0.0992,2708.9,2708.8,5.66981525]
[1739623015296,0.771,2710.6,2710.1,3.68989]
[1739623015580,0.771,2710.6,2709.8,3.50666246]
[1739623015808,2.218,2710.8,2710.6,3.6892]
[1739623015944,2.218,2710.8,2710.7,0.8083]
[1739623016145,4.75410196,2712.0,2711.0,3.68863]
[1739623016379,6.45700353,2711.8,2711.1,7.19518246]
[1739623016539,2.04912463,2711.8,2710.7,1.25805]
[1739623016746,3.68854,2711.1,2710.7,1.25805]
[1739623016962,3.68841,2711.2,2710.7,0.8083]
[1739623017196,3.68854,2711.1,2710.7,0.8083]
[1739623017397,4.23086557,2711.8,2710.7,8.75]
[1739623017698,3.68893,2710.9,2710.4,8.75]
[1739623017872,3.68926,2710.6,2710.3,0.8083]
[1739623018075,3.68967,2710.3,2709.9,8.75]
[1739623018284,3.68983,2710.2,2709.9,8.75]
[1739623018609,3.69005,2710.0,2709.7,0.777]
[1739623018814,3.6897,2710.3,2709.7,0.777]
[1739623018999,0.275,2710.1,2709.6,8.75]
[1739623019197,0.67147,2710.1,2709.6,8.75]
[1739623019395,4.3614,2710.1,2709.6,8.75]
[1739623019600,4.3614,2710.1,2709.4,5.38]
[1739623019769,0.67147,2710.1,2709.4,5.38]
[1739623019969,0.276,2710.2,2709.8,3.69029]
[1739623020301,0.276,2710.2,2709.4,5.38]
[1739623020461,0.276,2710.2,2709.5,3.69065]
[1739623020814,0.276,2710.2,2709.3,4.46797]
[1739623020815,3.69037,2709.8,2708.9,0.777]
[1739623021310,3.69162,2708.9,2708.2,0.777]
[1739623021600,3.69162,2708.9,2708.0,3.69274]
[1739623021601,0.8062,2708.9,2708.0,8.75]
[1739623021812,0.55,2708.5,2707.4,0.35066625]
[1739623021960,3.69278,2708.0,2707.0,0.777]
[1739623022165,3.69236,2708.3,2707.5,3.69341]
[1739623022367,3.9835,2708.2,2707.3,4.39095484]
[1739623022585,3.0,2708.8,2707.0,0.777]
[1739623022586,0.291,2708.1,2707.6,4.39095484]
[1739623022795,0.291,2708.3,2707.6,8.08424484]
[1739623023027,3.69206,2708.6,2707.7,0.80842448]
[1739623023178,3.69183,2708.7,2707.9,5.16795484]
[1739623023520,0.291,2708.8,2708.2,4.39095484]
[1739623023803,0.291,2708.8,2708.5,4.39095484]
[1739623024001,0.291,2708.8,2708.6,0.80831448]
[1739623024194,3.69128,2709.1,2708.6,0.80831448]
[1739623024616,3.69128,2709.1,2708.3,3.69234]
[1739623024922,3.69142,2709.0,2708.2,13.14095484]
[1739623025311,3.69142,2709.0,2708.2,16.83341484]
[1739623026582,3.69177,2708.8,2708.2,8.75]
[1739623026821,3.69177,2708.8,2708.1,12.44262]
[1739623026993,3.69177,2708.8,2708.2,1.244262]
[1739623027195,3.98216,2709.2,2708.2,1.244262]
[1739623027518,3.69169,2708.8,2708.2,1.244262]
[1739623027818,3.69141,2709.0,2708.2,1.244262]
[1739623028020,3.69141,2709.0,2708.3,0.9994262]
[1739623028188,3.69154,2708.9,2708.3,0.9994262]
[1739623028619,3.69131,2709.1,2708.3,0.9994262]
[1739623028924,3.69152,2709.0,2708.3,0.9994262]
[1739623029089,3.98215,2709.2,2708.3,0.9994262]
[1739623029290,3.69146,2709.0,2708.4,0.6634643]
[1739623029834,1.53259027,2709.7,2708.4,0.6634643]
[1739623029835,3.691,2709.3,2708.4,0.6634643]
[1739623029983,3.981,2709.3,2708.5,4.39095484]
[1739623030187,3.691,2709.3,2708.5,4.39095484]
[1739623030389,3.69123,2709.2,2708.5,4.39095484]
[1739623030626,3.691,2709.3,2708.6,0.87465991]
[1739623030818,3.69085,2709.4,2708.6,0.87465991]
[1739623031023,3.69175,2708.8,2708.5,5.38]
[1739623031598,4.24085,2709.4,2708.5,5.38]
[1739623031803,3.69248,2708.2,2708.1,5.38]
[1739623032000,1.0586,2708.7,2707.7,5.38]
[1739623032203,3.69244,2708.3,2707.8,0.538]
[1739623032603,3.69213,2708.5,2707.8,0.538]
[1739623032818,4.75046,2708.7,2707.8,0.538]
[1739623032989,3.69217,2708.5,2707.8,0.538]
[1739623033194,3.69198,2708.6,2707.9,4.39095484]
[1739623033529,3.69208,2708.5,2708.0,0.49289548]
[1739623033727,3.69196,2708.6,2708.0,0.49289548]
[1739623034053,3.69181,2708.7,2708.1,3.69249]
[1739623034411,3.98063,2708.9,2708.2,8.08333484]
[1739623034594,0.289,2708.9,2708.3,6.26733348]
[1739623035017,0.289,2708.9,2708.3,9.95957348]
[1739623035230,3.98055,2708.9,2708.3,6.26733348]
[1739623035658,3.98055,2708.9,2708.3,9.95963348]
[1739623035956,0.289,2708.9,2708.3,6.26733348]
[1739623036136,0.289,2708.9,2708.5,8.08300484]
[1739623036452,3.69117,2709.2,2708.6,3.69193]
[1739623037136,3.69117,2709.2,2708.5,8.08302484]
[1739623037347,3.69117,2709.2,2708.6,3.69194]
[1739623038112,3.69088,2709.4,2708.7,3.69174]
[1739623038338,3.69099,2709.3,2708.8,0.738368]
[1739623038524,3.69099,2709.3,2708.8,6.118368]
[1739623039021,3.69062,2709.6,2708.9,3.69142]
[1739623039209,3.69062,2709.6,2709.0,0.82691048]
[1739623040049,3.69094,2709.4,2709.0,0.79]
[1739623040244,3.69094,2709.4,2709.0,1.91993228]
[1739623040550,3.69073,2709.5,2709.0,1.91993228]
[1739623041219,7.38158,2709.5,2709.0,1.91993228]
[1739623041420,3.69085,2709.4,2709.0,1.91993228]
[1739623041621,3.6903,2709.8,2708.8,6.118368]
[1739623041828,3.69108,2709.3,2708.8,5.38]
[1739623042646,7.38218,2709.3,2708.8,5.38]
[1739623042943,3.69074,2709.5,2708.8,5.38]
[1739623043251,3.69074,2709.5,2708.8,9.07165]
[1739623044423,3.69074,2709.5,2709.0,0.90715]
[1739623044638,3.9786,2709.6,2709.1,3.69125]
[1739623044844,3.69041,2709.8,2709.1,3.69125]
[1739623045147,3.97823,2709.9,2709.2,1.366976]
[1739623045354,7.66852,2709.9,2709.2,10.438046]
[1739623045648,3.69023,2709.9,2709.2,10.437986]
[1739623045844,3.69023,2709.9,2709.4,0.79]
[1739623046046,3.68992,2710.1,2709.4,4.48081]
[1739623046252,3.68992,2710.1,2709.5,0.88717648]
[1739623047025,7.37994,2710.1,2709.5,0.88717648]
[1739623047218,3.69008,2710.0,2709.5,0.88717648]
[1739623048051,3.68992,2710.1,2709.5,0.88717648]
[1739623048248,3.68992,2710.1,2709.5,4.57787648]
[1739623048519,3.68973,2710.3,2709.7,3.69032]
[1739623048744,3.68973,2710.3,2709.8,0.03690036]
[1739623048946,3.68972,2710.3,2709.8,5.38]
[1739623049473,3.68972,2710.3,2709.8,9.07029]
[1739623049638,3.68943,2710.5,2709.8,9.07029]
[1739623049836,3.68943,2710.5,2709.8,10.87604855]
[1739623050741,8.97682394,2710.6,2709.8,5.38]
[1739623051055,3.68989,2710.2,2709.8,5.38]
[1739623052457,3.68953,2710.4,2709.8,9.07029]
[1739623052659,10.44817394,2710.6,2710.0,3.69002]
[1739623052866,3.68939,2710.5,2710.0,3.69002]
[1739623053028,3.68939,2710.5,2710.0,5.40514648]
[1739623053361,6.47178394,2710.6,2710.1,0.7965]
[1739623054325,2.78256394,2710.6,2710.1,8.87733484]
[1739623054531,2.78256394,2710.6,2710.3,3.68955]
[1739623054760,2.78256394,2710.6,2710.4,0.74161725]
[1739623055131,2.78256394,2710.6,2710.2,3.68973]
[1739623055841,2.78256394,2710.6,2710.2,7.37941]
[1739623056042,2.78256394,2710.6,2710.2,3.68968]
[1739623056251,2.78256394,2710.6,2710.2,7.37935]
[1739623056450,2.78256394,2710.6,2710.3,3.68961]
[1739623056754,2.78256394,2710.6,2710.4,0.737928]
[1739623056956,3.68882,2710.9,2710.4,0.737928]
[1739623057151,3.68897,2710.8,2710.4,0.737928]
[1739623058063,3.68927,2710.6,2710.4,0.737928]
[1739623058255,3.68927,2710.6,2710.1,5.18745484]
[1739623058256,3.68897,2710.8,2710.2,3.68974]
[1739623058454,3.68897,2710.8,2710.3,3.68954]
[1739623058645,3.68874,2711.0,2710.2,3.68974]
[1739623058646,3.68882,2710.9,2710.4,3.68948]
[1739623059166,7.37755,2711.0,2710.4,3.68948]
[1739623059342,3.68848,2711.2,2710.6,3.6892]
[1739623059549,3.68864,2711.1,2710.6,1.17696348]
[1739623060170,3.68869,2711.0,2710.6,1.17696348]
[1739623060749,3.68882,2710.9,2710.6,1.17696348]
[1739623061037,3.68869,2711.0,2710.6,1.17696348]
[1739623061259,1.28530442,2711.6,2710.8,3.68894]
[1739623061260,3.68792,2711.6,2710.8,3.68894]
[1739623061449,3.68807,2711.5,2710.9,3.68869]
[1739623061973,3.68807,2711.5,2710.8,3.68884]
[1739623062182,3.68807,2711.5,2710.9,5.17927912]
[1739623062680,3.68807,2711.5,2711.0,3.68867]
[1739623063751,3.68813,2711.4,2710.9,1.49048912]
[1739623064547,3.68813,2711.4,2710.9,5.17928912]
[1739623065054,3.6878,2711.7,2710.9,5.17928912]
[1739623065246,3.68803,2711.5,2711.0,0.88681291]
[1739623065464,3.68803,2711.5,2711.1,5.38]
[1739623065895,7.37562,2711.7,2711.1,9.06853]
[1739623066179,3.68793,2711.6,2711.1,5.38]
[1739623066690,3.688,2711.5,2711.1,5.38]
[1739623066852,3.68793,2711.6,2711.2,0.62668129]
[1739623067045,3.68793,2711.6,2711.2,6.00668129]
[1739623068978,3.68793,2711.6,2711.3,0.8103]
[1739623070261,7.37591,2711.6,2711.3,0.8103]
[1739623070481,3.68793,2711.6,2711.3,0.8103]
[1739623070681,3.68793,2711.6,2711.4,0.68169813]
[1739623071348,3.68767,2711.8,2711.4,6.06169813]
[1739623071555,3.6876,2711.8,2711.4,6.06169813]
[1739623073173,3.68788,2711.6,2711.4,6.06169813]
[1739623074358,3.68799,2711.5,2711.4,6.06169813]
[1739623074560,3.68799,2711.5,2711.4,5.38]
[1739623074972,3.68788,2711.6,2711.4,5.38]
[1739623076183,3.68767,2711.8,2711.4,5.38]
[1739623076390,3.68772,2711.7,2711.4,5.38]
[1739623077362,3.6876,2711.8,2711.4,5.38]
[1739623077603,3.68784,2711.7,2711.5,0.987853]
[1739623077807,3.68785,2711.6,2711.5,0.987853]
[1739623077968,3.68785,2711.6,2711.5,6.367853]
[1739623078320,3.68785,2711.6,2711.5,5.38]
[1739623078868,4.46575,2711.6,2711.5,5.38]
[1739623080066,3.68785,2711.6,2711.5,5.38]
[1739623083278,3.68784,2711.7,2711.3,4.31451003]
[1739623084720,7.37565,2711.7,2711.3,4.31451003]
[1739623084921,3.68781,2711.7,2711.4,0.431451]
[1739623085288,7.37563,2711.7,2711.4,0.431451]
[1739623085627,3.68781,2711.7,2711.4,0.431451]
[1739623086623,5.28004099,2712.2,2711.4,0.431451]
[1739623086624,3.68762,2711.8,2711.4,0.431451]
[1739623086780,3.68775,2711.7,2711.4,0.431451]
[1739623086986,7.37557,2711.7,2711.5,0.4745961]
[1739623087187,3.68775,2711.7,2711.5,0.4745961]
[1739623087516,3.68785,2711.6,2711.5,0.4745961]
[1739623087866,3.68775,2711.7,2711.5,0.4745961]
[1739623088373,3.68785,2711.6,2711.5,0.4745961]
[1739623088686,3.68775,2711.7,2711.5,0.4745961]
[1739623089128,3.68752,2711.9,2711.5,0.4745961]
[1739623089418,3.6876,2711.8,2711.5,5.8545961]
[1739623089582,3.68732,2712.0,2711.6,0.58545961]
[1739623089779,3.68719,2712.1,2711.6,4.08776964]
[1739623089985,7.37448,2712.1,2711.6,4.08776964]
[1739623090678,3.68719,2712.1,2711.6,4.08776964]
[1739623090883,3.68747,2711.9,2711.7,1.36302357]
[1739623091117,3.68747,2711.9,2711.6,0.58545961]
[1739623093472,3.6877,2711.8,2711.6,0.58545961]
[1739623095229,3.6877,2711.8,2711.6,5.96545961]
[1739623095230,3.68759,2711.8,2711.6,5.96545961]
[1739623095521,3.68747,2711.9,2711.6,5.96545961]
[1739623095765,3.68747,2711.9,2711.7,0.64400557]
[1739623096605,3.68725,2712.1,2711.7,0.64400557]
[1739623097000,3.68749,2711.9,2711.7,0.64400557]
[1739623098007,3.68726,2712.1,2711.7,0.64400557]
[1739623098211,3.68726,2712.1,2711.8,0.8075]
[1739623098522,3.68726,2712.1,2711.9,0.68315056]
[1739623098892,2.78104099,2712.2,2711.9,0.68315056]
[1739623099218,6.46808099,2712.2,2711.9,0.68315056]
[1739623099577,2.78104099,2712.2,2711.9,0.68315056]
[1739623099780,6.46808099,2712.2,2711.9,0.68315056]
[1739623100236,3.68704,2712.2,2711.9,0.68315056]
[1739623102515,3.68695,2712.3,2711.9,0.68315056]
[1739623102718,3.68695,2712.3,2712.0,0.51781506]
[1739623103616,3.68684,2712.4,2712.0,0.51781506]
[1739623103984,3.68704,2712.2,2712.0,5.89781506]
[1739623104184,3.68684,2712.4,2712.0,5.89781506]
[1739623104718,7.37369,2712.4,2712.0,5.89781506]
[1739623105083,3.68695,2712.3,2712.0,5.89781506]
[1739623105818,3.68704,2712.2,2712.1,0.65809656]
[1739623107108,3.68704,2712.2,2712.0,5.89781506]
[1739623107311,3.68717,2712.1,2712.0,5.89781506]
[1739623107514,3.68717,2712.1,2712.0,5.38]
[1739623109922,5.9048,2712.4,2711.5,6.1875]
[1739623110090,3.68759,2711.8,2711.5,6.1875]
[1739623110296,3.6869,2712.3,2711.5,5.38]
[1739623110297,3.68785,2711.6,2711.5,5.38]
[1739623115151,3.68772,2711.7,2711.5,5.38]
[1739623115349,3.68772,2711.7,2711.6,0.38141366]
[1739623115642,3.68772,2711.7,2711.5,6.1971]
[1739623115791,3.68785,2711.6,2711.5,5.38]
[1739623117042,0.0030977,2711.6,2711.5,5.38]
[1739623118732,0.0030977,2711.6,2711.5,9.06799]
[1739623119010,0.0030977,2711.6,2711.5,9.88509]
[1739623119299,0.0030977,2711.6,2711.5,11.592631]
[1739623121502,0.0030977,2711.6,2711.5,7.904641]
[1739623121707,0.0030977,2711.6,2711.5,11.592631]
[1739623121907,0.0030977,2711.6,2711.5,20.342631]
[1739623122313,0.0030977,2711.6,2711.5,16.654641]
[1739623123344,0.0030977,2711.6,2711.5,15.837541]
[1739623127856,0.0030977,2711.6,2711.5,7.087541]
[1739623128051,0.0030977,2711.6,2711.5,11.590531]
[1739623129731,0.0030977,2711.6,2711.5,14.590531]
[1739623133835,0.0030977,2711.6,2711.5,23.340531]
[1739623150907,0.0030977,2711.6,2711.5,15.837541]
[1739623151194,0.0030977,2711.6,2711.5,14.13]
[1739623151573,0.0030977,2711.6,2711.5,5.38]
[1739623152191,4.4787477,2711.6,2711.5,5.38]
[1739623152808,3.68799,2711.5,2711.4,8.275]
[1739623153163,3.6910877,2711.5,2711.4,8.275]
[1739623153883,4.50776147,2711.5,2711.4,8.275]
[1739623154387,5.27816147,2711.5,2711.4,8.275]
[1739623155498,0.7734977,2711.5,2711.4,8.275]
[1739623155695,0.0030977,2711.5,2711.4,8.275]
[1739623155898,0.0030977,2711.5,2711.4,13.655]
[1739623156505,0.0030977,2711.5,2711.4,17.34313]
[1739623157129,0.0030977,2711.5,2711.4,18.11063]
[1739623157412,0.0030977,2711.5,2711.4,21.51575]
[1739623158800,0.0030977,2711.5,2711.4,20.74825]
[1739623159899,0.0030977,2711.5,2711.4,17.06012]
[1739623160076,0.0030977,2711.5,2711.4,13.655]
[1739623160276,0.0030977,2711.5,2711.4,5.38]
[1739623160777,0.0030977,2711.5,2711.4,5.41687678]
[1739623161315,0.0030977,2711.5,2711.4,9.10500678]
[1739623161614,0.0030977,2711.5,2711.4,9.06813]
[1739623161800,0.0030977,2711.5,2711.4,11.56899]
[1739623162612,0.0030977,2711.5,2711.4,7.88086]
[1739623163116,4.4477877,2711.5,2711.4,5.38]
[1739623163279,3.68815,2711.4,2711.1,5.38]
[1739623163832,3.68829,2711.3,2711.1,5.38]
[1739623164351,3.6913877,2711.3,2711.1,5.38]
[1739623164653,0.0030977,2711.3,2711.1,5.38]
[1739623164831,0.0030977,2711.3,2711.2,0.906865]
[1739623165897,0.0030977,2711.3,2711.2,4.595265]
[1739623166097,0.0030977,2711.3,2711.2,4.63214424]
[1739623166808,0.0030977,2711.3,2711.2,4.595265]
[1739623167010,0.0030977,2711.3,2711.2,4.6321419]
[1739623167224,0.0030977,2711.3,2711.2,21.7621419]
[1739623167415,0.0030977,2711.3,2711.2,21.725265]
[1739623171401,0.0030977,2711.3,2711.2,18.725265]
[1739623171608,0.0030977,2711.3,2711.2,15.036865]
[1739623173661,0.0030977,2711.3,2711.2,18.725265]
[1739623178769,0.0030977,2711.3,2711.2,19.491565]
[1739623181572,0.0030977,2711.3,2711.2,18.725265]
[1739623182750,0.0030977,2711.3,2711.2,15.036865]
[1739623182956,0.0030977,2711.3,2711.2,18.725265]
[1739623184390,0.0030977,2711.3,2711.2,9.975265]
[1739623190182,0.0030977,2711.3,2711.2,18.725265]
[1739623192991,0.0030977,2711.3,2711.2,19.529065]
[1739623196303,0.0030977,2711.3,2711.2,22.529065]
[1739623200605,0.0030977,2711.3,2711.2,21.725265]
[1739623202078,0.0030977,2711.3,2711.2,18.725265]
[1739623203172,0.0030977,2711.3,2711.2,14.13]
[1739623203516,0.0030977,2711.3,2711.2,17.8184]
[1739623203884,0.0030977,2711.3,2711.2,14.13]
[1739623204710,0.0030977,2711.3,2711.2,17.8184]
[1739623205804,0.0030977,2711.3,2711.2,14.13]
[1739623206409,0.0030977,2711.3,2711.2,5.38]
[1739623208713,3.6913577,2711.3,2711.2,5.38]
[1739623209119,4.4672577,2711.3,2711.2,5.38]
[1739623209314,4.91398347,2711.3,2711.2,5.38]
[1739623210982,3.68884,2710.9,2710.6,5.38]
[1739623211717,0.7759,2710.8,2710.6,5.38]
[1739623214141,3.68908,2710.7,2710.6,5.38]
[1739623216228,0.7759,2710.8,2710.6,5.38]
[1739623218927,4.46485,2710.8,2710.6,5.38]
[1739623219129,0.7759,2710.8,2710.6,5.38]
[1739623219706,4.46489,2710.8,2710.6,5.38]
[1739623220322,3.68908,2710.7,2710.6,5.38]
[1739623221509,4.46489,2710.8,2710.6,5.38]
[1739623222431,3.68908,2710.7,2710.6,5.38]
[1739623223409,4.49558,2710.7,2710.6,5.38]
[1739623223616,4.49616,2710.3,2709.9,5.38]
[1739623223796,3.6898,2710.2,2709.9,5.38]
[1739623224003,8.18586,2710.3,2709.9,5.38]
[1739623224613,4.49616,2710.3,2709.9,5.38]
[1739623226643,3.6894,2710.5,2710.0,3.69001]
[1739623227823,3.68898,2710.8,2710.3,3.68961]
[1739623228126,3.68898,2710.8,2710.3,3.72650207]
[1739623228551,3.68898,2710.8,2710.3,3.68961]
[1739623228847,4.5192,2710.9,2710.4,0.03689274]
[1739623229053,0.0030977,2711.0,2710.7,3.68897]
[1739623229207,0.0030977,2711.0,2710.8,3.50231003]
[1739623229406,0.0030977,2711.0,2710.9,0.03688354]
[1739623229644,0.0030977,2711.0,2710.8,3.50231003]
[1739623229839,0.0030977,2711.0,2710.9,0.719128]
[1739623230346,0.0030977,2711.0,2710.9,13.99351942]
[1739623230640,0.0030977,2711.0,2710.9,13.956638]
[1739623234715,0.0030977,2711.0,2710.9,19.336638]
[1739623236752,0.0030977,2711.0,2710.9,14.849128]
[1739623238954,0.0030977,2711.0,2710.9,18.537938]
[1739623240351,0.0030977,2711.0,2710.9,14.849128]
[1739623240727,0.0030977,2711.0,2710.9,6.099128]
[1739623242936,3.6917677,2711.0,2710.9,5.38]
[1739623243862,4.5228677,2711.0,2710.9,5.38]
[1739623249903,3.68922,2710.6,2710.5,5.38]
[1739623250054,4.44452,2710.6,2710.5,5.38]
[1739623253882,5.25788,2710.6,2710.5,5.38]
[1739623255595,4.44452,2710.6,2710.5,5.38]
[1739623261696,3.68972,2710.3,2710.1,5.38]
[1739623261876,3.68961,2710.4,2710.1,5.38]
[1739623263363,8.13394,2710.6,2710.1,5.38]
[1739623263567,3.68939,2710.5,2710.1,5.38]
[1739623264564,3.68956,2710.4,2710.1,5.38]
[1739623264799,3.68957,2710.4,2710.1,5.38]
[1739623265503,3.68976,2710.2,2710.1,5.38]
[1739623266080,3.68963,2710.3,2710.1,5.38]
[1739623266471,3.68976,2710.2,2710.1,5.38]
[1739623267183,3.68963,2710.3,2710.1,5.38]
[1739623267592,3.68976,2710.2,2710.1,5.38]
[1739623269013,4.5090416,2710.2,2710.1,5.38]
[1739623269171,5.3306416,2710.2,2710.1,5.38]
[1739623270495,3.69006,2710.0,2709.7,5.38]
[1739623271906,3.69026,2709.9,2709.7,5.38]
[1739623273687,7.38051,2709.9,2709.7,5.38]
[1739623273897,3.69025,2709.9,2709.7,5.38]
[1739623274107,3.6903,2709.8,2709.7,5.38]
[1739623276586,4.444,2709.8,2709.7,5.38]
[1739623279385,3.69055,2709.7,2709.4,5.38]
[1739623279711,7.3811,2709.7,2709.4,5.38]
[1739623279880,3.69055,2709.7,2709.4,5.38]
[1739623280082,3.69052,2709.7,2709.4,5.38]
[1739623280317,0.7537,2709.8,2709.4,5.38]
[1739623280498,4.44412,2709.8,2709.4,5.38]
[1739623280811,3.69042,2709.8,2709.4,5.38]
[1739623281181,3.69018,2709.9,2709.4,5.38]
[1739623281383,4.44385,2710.0,2709.4,7.243962]
[1739623281579,3.95706,2710.0,2709.6,0.8186]
[1739623281784,3.69006,2710.0,2709.6,0.8186]
[1739623284885,3.95683,2710.2,2709.7,3.69035]
[1739623285105,3.95683,2710.2,2709.7,4.510314]
[1739623285306,0.267,2710.2,2709.7,9.890314]
[1739623285711,3.95686,2710.2,2709.7,9.890314]
[1739623286726,7.6467,2710.2,2709.7,6.199964]
[1739623286921,3.6895,2710.4,2709.7,9.890394]